{"text_format":"3","workbook":"xlsx","n_sheets":9,"sheets":["Draft Roster","Draft List","Summary","Centre","Left Wing","Right Wing","Defence","Goalies","Data"],"not_rendered":{"macros":1,"external_links":1,"defined_names":43},"read":"whole","date_system":"1900"}

{"sheet":"Draft Roster","index":0,"n_rows":30,"n_cols":41,"rows_kept":30,"merged":[[0,1,0,4],[0,5,0,8],[0,9,0,12],[0,13,0,16],[0,17,0,20],[0,21,0,24],[0,25,0,28],[0,29,0,32],[0,33,0,36],[0,37,0,40],[1,1,1,4],[1,5,1,8],[1,9,1,12],[1,13,1,16],[1,17,1,20],[1,21,1,24],[1,25,1,28],[1,29,1,32],[1,33,1,36],[1,37,1,39],[21,1,21,2],[21,5,21,6],[21,13,21,14],[21,17,21,18],[21,21,21,22],[21,25,21,26],[21,29,21,30],[21,33,21,34],[21,37,21,38],[22,1,22,2],[22,5,22,6],[22,9,22,10],[22,13,22,14],[22,17,22,18],[22,21,22,22],[22,25,22,26],[22,29,22,30],[22,33,22,34],[22,37,22,38],[32,1,32,2],[32,5,32,6],[32,9,32,10],[32,13,32,14],[32,17,32,18]]}
[null,{"$f":"C25","v":"Draft Order = 9"},{"$nulls":3},{"$f":"G25","v":"Draft Order = 8"},{"$nulls":3},{"$f":"K25","v":"Draft Order = 6"},{"$nulls":3},{"$f":"O25","v":"Draft Order = 1"},{"$nulls":3},{"$f":"S25","v":"Draft Order = 5"},{"$nulls":3},{"$f":"W25","v":"Draft Order = 3"},{"$nulls":3},{"$f":"AA25","v":"Draft Order = 7"},{"$nulls":3},{"$f":"AE25","v":"Draft Order = 4"},{"$nulls":3},{"$f":"AI25","v":"Draft Order = 2"},{"$nulls":3},{"$f":"AM25","v":"Draft Order = 10"}]
[null,"Bruins (Bruce)",{"$nulls":3},"Dominant Brandon (Brandon)",{"$nulls":3},"Booya's (Cathy)",{"$nulls":3},"Killa Chinchillas (Colin)",{"$nulls":3},"Woap (Mike)",{"$nulls":3},"Tad Nugents (Nick)",{"$nulls":3},"Riverdogs (Rhonda)",{"$nulls":3},"Robs Chiefs (Rob)",{"$nulls":3},"Curtis Crazy Canucks (Todd)",{"$nulls":3},"Vamoos Pest (Tom)"]
[null,"Pos.","Player","$","years","Pos.","Player","$","years","Pos.","Player","$","years","Pos.","Player","$","years","Pos.","Player","$","years","Pos.","Player","$","years","Pos.","Player","$","years","Pos.","Player","$","years","Pos.","Player","$","years","Pos.","Player","$","years"]
[{"$f":"20-COUNT(D4,H4,L4,P4,T4,X4, AB4,AF4,AJ4,AN4,D5,H5,L5,P5,T5,X5,AB5,AF5,AJ5,AN5)","v":0},"G1","Henrik Lundqvist\n(NYR - G)",6,null,"G1","Ondrej Pavelec\n(Wpg - G)",3,1,"G1","Tuukka Rask\n(Bos - G)",8,null,"G1","Jaroslav Halak\n(StL - G)",1,1,"G1","Carey Price\n(Mon - G)",4,1,"G1","Sergei Bobrovsky\n(Cls - G)",2,null,"G1","Jonathan Quick\n(LA - G)",4,1,"G1","Braden Holtby\n(Was - G)",1,1,"G1","Roberto Luongo\n(Van - G)",1,1,"G1","Craig Anderson\n(Ott - G)",1,1]
[null,"G2","Pekka Rinne\n(Nsh - G)",5,null,"G2","Brian Elliott\n(StL - G)",1,null,"G2","Cam Ward\n(Car - G)",1,null,"G2","Antti Niemi\n(SJ - G)",7,null,"G2","Jonas Hiller\n(Anh - G)",1,null,"G2","Corey Crawford\n(Chi - G)",6,null,"G2","Marc-Andre Fleury\n(Pit - G)",2,null,"G2","Jimmy Howard\n(Det - G)",6,null,"G2","Mike Smith\n(Pho - G)",1,null,"G2","Evgeni Nabokov\n(NYI - G)",1]
[{"$f":"40-COUNT(D6:D9,H6:H9,L6:L9,P6:P9,T6:T9,X6:X9,AB6:AB9,AF6:AF9,AJ6:AJ9,AN6:AN9)","v":0},"D","Kris Letang\n(Pit - D)",12,1,"D","Mark Streit\n(Phi - D)",9,1,"D","Duncan Keith\n(Chi - D)",7,2,"D","Oliver Ekman-Larsson\n(Pho - D)",9,3,"D","Jake Gardiner\n(Tor - D)",6,2,"D","Dion Phaneuf\n(Tor - D)",7,1,"D","Ryan Suter\n(Min - D)",9,2,"D","Brian Campbell\n(Fla - D)",6,1,"D","Zdeno Chara\n(Bos - D)",18,1,"D","John Carlson\n(Was - D)",1]
[null,"D","Alex Goligoski\n(Dal - D)",4,2,"D","Keith Yandle\n(Pho - D)",7,1,"D","Mike Green\n(Was - D)",9,1,"D","Cam Fowler\n(Anh - D)",9,1,"D","Mark Giordano\n(Cgy - D)",4,1,"D","Alexander Edler\n(Van - D)",4,null,"D","Dustin Byfuglien\n(Wpg - RW,D)",15,null,"D","James Wisniewski\n(Cls - D)",3,1,"D","Shea Weber\n(Nsh - D)",11,null,"D","Brent Seabrook\n(Chi - D)",1]
[null,"D","Slava Voynov\n(LA - D)",4,2,"D","Andrei Markov\n(Mon - D)",3,1,"D","Christian Ehrhoff\n(Buf - D)",3,1,"D","Alex Pietrangelo\n(StL - D)",9,1,"D","Sergei Gonchar\n(Dal - D)",1,1,"D","Dan Boyle\n(SJ - D)",3,null,"D","Victor Hedman\n(TB - D)",1,null,"D","Niklas Kronwall\n(Det - D)",11,null,"D","Drew Doughty\n(LA - D)",11,null,"D","Jay Bouwmeester\n(StL - D)",1]
[null,"D","Brent Burns\n(SJ - RW,D)",3,null,"D","Seth Jones\n(Nsh - D)",1,null,"D","Cody Franson\n(Tor - D)",1,null,"D","Tobias Enstrom\n(Wpg - D)",5,null,"D","P.K. Subban\n(Mon - D)",18,null,"D","Kevin Shattenkirk\n(StL - D)",2,null,"D","Dougie Hamilton\n(Bos - D)",1,null,"D","Kimmo Timonen\n(Phi - D)",6,null,"D","Jack Johnson\n(Cls - D)",1,null,"D","Matt Carle\n(TB - D)",1]
[{"$f":"30-COUNT(D10:D12,H10:H12,L10:L12,P10:P12,#REF!,T10:T12,X10:X12,AB10:AB12,AF10:AF12,AJ10:AJ12,AN10:AN12)","v":0},"LW","Gabriel Landeskog\n(Col - LW)",7,2,"LW","Henrik Zetterberg\n(Det - C,LW)",25,1,"LW","Evander Kane\n(Wpg - LW)",6,2,"LW","James Neal\n(Pit - LW,RW)",10,2,"LW","Jamie Benn\n(Dal - LW)",7,1,"LW","Tyler Ennis\n(Buf - C,LW)",7,3,"LW","Jordan Staal\n(Car - C,LW)",6,1,"LW","Tomas Fleischmann\n(Fla - LW)",4,1,"LW","Scott Hartnell\n(Phi - LW)",5,1,"LW","Chris Kunitz\n(Pit - LW)",6,2]
[null,"LW","Taylor Hall\n(Edm - LW)",24,1,"LW","Brad Marchand\n(Bos - LW)",6,1,"LW","Jeff Carter\n(LA - C,LW,RW)",13,null,"LW","David Perron\n(Edm - LW)",1,1,"LW","Patrick Sharp\n(Chi - C,LW)",13,null,"LW","Dustin Brown\n(LA - LW,RW)",6,null,"LW","Loui Eriksson\n(Bos - LW,RW)",21,null,"LW","Zach Parise\n(Min - LW)",17,null,"LW","Joffrey Lupul\n(Tor - LW,RW)",6,1,"LW","Patrick Marleau\n(SJ - C,LW)",17]
[null,"LW","Andrew Ladd\n(Wpg - LW)",1,1,"LW","Dany Heatley\n(Min - LW,RW)",3,null,"LW","Bobby Ryan\n(Ott - LW,RW)",19,null,"LW","Jonathan Drouin\n(TB - LW)",8,null,"LW","Matt Moulson\n(NYI - LW)",14,null,"LW","Milan Lucic\n(Bos - LW)",6,null,"LW","Patrik Elias\n(NJ - C,LW)",6,null,"LW","Logan Couture\n(SJ - C,LW)",16,null,"LW","Daniel Sedin\n(Van - LW)",29,null,"LW","Alex Galchenyuk\n(Mon - C,LW)",7]
[{"$f":"30-COUNT(D13:D15,H13:H15,L13:L15,P13:P15,T13:T15,X13:X15,AB13:AB15,AF13:AF15,AJ13:AJ15,AN13:AN15)","v":0},"RW","Claude Giroux\n(Phi - C,RW)",8,1,"RW","Jakub Voracek\n(Phi - RW)",6,2,"RW","P.A. Parenteau\n(Col - RW)",5,2,"RW","Blake Wheeler\n(Wpg - RW)",1,1,"RW","Jordan Eberle\n(Edm - RW)",7,2,"RW","David Backes\n(StL - C,RW)",6,1,"RW","Corey Perry\n(Anh - RW)",17,null,"RW","Phil Kessel\n(Tor - RW)",13,1,"RW","Tyler Seguin\n(Dal - C,RW)",14,2,"RW","Alex Ovechkin\n(Was - RW)",29,2]
[null,"RW","Teddy Purcell\n(TB - RW)",1,1,"RW","Cody Hodgson\n(Buf - C,RW)",3,1,"RW","Bryan Little\n(Wpg - C,RW)",1,null,"RW","Jaromir Jagr\n(NJ - RW)",1,null,"RW","Rick Nash\n(NYR - LW,RW)",12,1,"RW","Jason Pominville\n(Min - RW)",9,null,"RW","Thomas Vanek\n(Buf - LW,RW)",18,null,"RW","Nathan Horton\n(Bos - RW)",6,1,"RW","Martin St. Louis\n(TB - RW)",28,null,"RW","Marian Hossa\n(Chi - RW)",12]
[null,"RW","Joe Pavelski\n(SJ - C,RW)",8,null,"RW","Valeri Nichushkin\n(Dal - RW)",1,null,"RW","Justin Williams\n(LA - RW)",1,null,"RW","Marian Gaborik\n(Cls - RW)",12,null,"RW","Alexander Semin\n(Car - LW,RW)",10,1,"RW","Jeff Skinner\n(Car - C,RW)",9,null,"RW","Troy Brouwer\n(Was - RW)",1,null,"RW","Johan Franzen\n(Det - LW,RW)",8,null,"RW","Chris Stewart\n(StL - RW)",1,null,"RW","Daniel Alfredsson\n(Det - RW)",2]
[{"$f":"30-COUNT(D16:D18,H16:H18,L16:L18,P16:P18,T16:T18,X16:X18,AB16:AB18,AF16:AF18,AJ16:AJ18,AN16:AN18)","v":0},"C","Ryan Nugent-Hopkins\n(Edm - C)",8,2,"C","Sidney Crosby\n(Pit - C)",37,3,"C","Steven Stamkos\n(TB - C)",36,2,"C","Evgeni Malkin\n(Pit - C,RW)",37,2,"C","Derek Stepan\n(NYR - C)",6,2,"C","Henrik Sedin\n(Van - C)",29,null,"C","Jonathan Huberdeau\n(Fla - C,LW)",7,3,"C","Nazem Kadri\n(Tor - C)",6,2,"C","David Krejci\n(Bos - C)",9,1,"C","Patrick Kane\n(Chi - C,RW)",27,1]
[null,"C","Nicklas Backstrom\n(Was - C)",28,1,"C","Pavel Datsyuk\n(Det - C,LW)",26,1,"C","John Tavares\n(NYI - C)",31,2,"C","Jason Spezza\n(Ott - C)",18,1,"C","Ryan Getzlaf\n(Anh - C)",13,1,"C","Anze Kopitar\n(LA - C)",25,null,"C","Jonathan Toews\n(Chi - C)",20,1,"C","Mikko Koivu\n(Min - C)",22,1,"C","Ryan Kesler\n(Van - C)",13,null,"C","Mike Ribeiro\n(Pho - C)",11,2]
[null,"C","Matt Duchene\n(Col - C,LW)",9,1,"C","Patrice Bergeron\n(Bos - C)",12,null,"C","Mike Richards\n(LA - C,LW)",4,null,"C","Sam Gagner\n(Edm - C,RW)",1,null,"C","Nathan MacKinnon\n(Col - C)",7,null,"C","Brad Richards\n(NYR - C)",13,null,"C","Eric Staal\n(Car - C)",20,1,"C","Vincent Lecavalier\n(Phi - C)",7,null,"C","Derek Roy\n(StL - C)",1,null,"C","Joe Thornton\n(SJ - C)",22]
[{"$f":"10-COUNT(D19,H19,L19,P19,T19,X19,AB19,AF19,AJ19,AN19)","v":0},"U","Jarome Iginla\n(Bos - RW)",12,null,"U","Aleksander Barkov\n(Fla - C)",1,null,"U","Pascal Dupuis\n(Pit - LW,RW)",5,null,"U","Mikhail Grabovski\n(Was - C)",1,null,"U","Erik Karlsson\n(Ott - D)",22,null,"U","Tomas Plekanec\n(Mon - C)",4,null,"U","Milan Michalek\n(Ott - LW,RW)",1,null,"U","James van Riemsdyk\n(Tor - LW)",4,null,"U","Alexandre Burrows\n(Van - LW,RW)",1,null,"U","Max Pacioretty\n(Mon - LW)",11]
[null,null,"Current Used Points",{"$f":"SUM(D4:D19)","v":140},null,null,"Current Used Points",{"$f":"SUM(H4:H19)","v":144},null,null,"Current Used Points",{"$f":"SUM(L4:L19)","v":150},null,null,"Current Used Points",{"$f":"SUM(P4:P19)","v":130},null,null,"Current Used Points",{"$f":"SUM(T4:T19)","v":145},null,null,"Current Used Points",{"$f":"SUM(X4:X19)","v":138},null,null,"Current Used Points",{"$f":"SUM(AB4:AB19)","v":149},null,null,"Current Used Points",{"$f":"SUM(AF4:AF19)","v":136},null,null,"Current Used Points",{"$f":"SUM(AJ4:AJ19)","v":150},null,null,"Current Used Points",{"$f":"SUM(AN4:AN19)","v":150}]
[null,null,"Remaining Points",{"$f":"SUM(150-D20)","v":10},null,null,"Remaining Points",{"$f":"SUM(150-H20)","v":6},null,null,"Remaining Points",{"$f":"SUM(150-L20)","v":0},null,null,"Remaining Points",{"$f":"SUM(150-P20)","v":20},null,null,"Remaining Points",{"$f":"SUM(150-T20)","v":5},null,null,"Remaining Points",{"$f":"SUM(150-X20)","v":12},null,null,"Remaining Points",{"$f":"SUM(150-AB20)","v":1},null,null,"Remaining Points",{"$f":"SUM(150-AF20)","v":14},null,null,"Remaining Points",{"$f":"SUM(150-AJ20)","v":0},null,null,"Remaining Points",{"$f":"SUM(150-AN20)","v":0}]
[null,"Maximum Bidding Points",null,{"$f":"(D21-(16-COUNT(D4:D19))+(IF(COUNT(D4:D19)=16,0,1)))","v":10},null,"Maximum Bidding Points",null,{"$f":"(H21-(16-COUNT(H4:H19))+(IF(COUNT(H4:H19)=16,0,1)))","v":6},null,null,"Maximum Bidding Points",{"$f":"(L21-(16-COUNT(L4:L19))+(IF(COUNT(L4:L19)=16,0,1)))","v":0},null,"Maximum Bidding Points",null,{"$f":"(P21-(16-COUNT(P4:P19))+(IF(COUNT(P4:P19)=16,0,1)))","v":20},null,"Maximum Bidding Points",null,{"$f":"(T21-(16-COUNT(T4:T19))+(IF(COUNT(T4:T19)=16,0,1)))","v":5},null,"Maximum Bidding Points",null,{"$f":"(X21-(16-COUNT(X4:X19))+(IF(COUNT(X4:X19)=16,0,1)))","v":12},null,"Maximum Bidding Points",null,{"$f":"(AB21-(16-COUNT(AB4:AB19))+(IF(COUNT(AB4:AB19)=16,0,1)))","v":1},null,"Maximum Bidding Points",null,{"$f":"(AF21-(16-COUNT(AF4:AF19))+(IF(COUNT(AF4:AF19)=16,0,1)))","v":14},null,"Maximum Bidding Points",null,{"$f":"(AJ21-(16-COUNT(AJ4:AJ19))+(IF(COUNT(AJ4:AJ19)=16,0,1)))","v":0},null,"Maximum Bidding Points",null,{"$f":"(AN21-(16-COUNT(AN4:AN19))+(IF(COUNT(AN4:AN19)=16,0,1)))","v":0}]
[null,"Remaining Players to Draft",null,{"$f":"16-COUNT(D4:D19)","v":0},null,"Remaining Players to Draft",null,{"$f":"16-COUNT(H4:H19)","v":0},null,"Remaining Players to Draft",null,{"$f":"16-COUNT(L4:L19)","v":0},null,"Remaining Players to Draft",null,{"$f":"16-COUNT(P4:P19)","v":0},null,"Remaining Players to Draft",null,{"$f":"16-COUNT(T4:T19)","v":0},null,"Remaining Players to Draft",null,{"$f":"16-COUNT(X4:X19)","v":0},null,"Remaining Players to Draft",null,{"$f":"16-COUNT(AB4:AB19)","v":0},null,"Remaining Players to Draft",null,{"$f":"16-COUNT(AF4:AF19)","v":0},null,"Remaining Players to Draft",null,{"$f":"16-COUNT(AJ4:AJ19)","v":0},null,"Remaining Players to Draft",null,{"$f":"16-COUNT(AN4:AN19)","v":0}]
[]
[null,null,{"$f":"\"Draft Order = \"&VLOOKUP(\"Bruins (Bruce)\",draftorder,2,FALSE)","v":"Draft Order = 9"},{"$nulls":3},{"$f":"\"Draft Order = \"&VLOOKUP(\"Dominant Brandon (Brandon)\",draftorder,2,FALSE)","v":"Draft Order = 8"},{"$nulls":3},{"$f":"\"Draft Order = \"&VLOOKUP(\"Booya's (Cathy)\",draftorder,2,FALSE)","v":"Draft Order = 6"},{"$nulls":3},{"$f":"\"Draft Order = \"&VLOOKUP(\"Killa Chinchillas (Colin)\",draftorder,2,FALSE)","v":"Draft Order = 1"},{"$nulls":3},{"$f":"\"Draft Order = \"&VLOOKUP(\"Woap (Mike)\",draftorder,2,FALSE)","v":"Draft Order = 5"},{"$nulls":3},{"$f":"\"Draft Order = \"&VLOOKUP(\"Tad Nugents (Nick)\",draftorder,2,FALSE)","v":"Draft Order = 3"},{"$nulls":3},{"$f":"\"Draft Order = \"&VLOOKUP(\"Riverdogs (Rhonda)\",draftorder,2,FALSE)","v":"Draft Order = 7"},{"$nulls":3},{"$f":"\"Draft Order = \"&VLOOKUP(\"Robs Chiefs (Rob)\",draftorder,2,FALSE)","v":"Draft Order = 4"},{"$nulls":3},{"$f":"\"Draft Order = \"&VLOOKUP(\"Curtis Crazy Canucks (Todd)\",draftorder,2,FALSE)","v":"Draft Order = 2"},{"$nulls":3},{"$f":"\"Draft Order = \"&VLOOKUP(\"Vamoos Pest (Tom)\",draftorder,2,FALSE)","v":"Draft Order = 10"}]
[null,null,"Brendan Gallagher\n(Mon - RW)",3,"r2013",null,"Ryan Miller\n(Buf - G)",3,null,null,"Michael Cammalleri\n(Cgy - C,LW)",3,null,null,"Nail Yakupov\n(Edm - RW)",18,"r2013",null,"Filip Forsberg\n(Nsh - C,RW)",3,"r2013",null,"James Reimer\n(Tor - G)",3,null,null,"Tyson Barrie\n(Col - D)",3,null,null,"Cory Schneider\n(NJ - G)",3,null,null,"Niklas Backstrom\n(Min - G)",3,null,null,"Brandon Saad\n(Chi - LW)",3]
[null,null,"Mikael Granlund\n(Min - C)",3,"r2013",null,"Dan Hamhuis\n(Van - D)",3,null,null,"Semyon Varlamov\n(Col - G)",3,null,null,"Brayden Schenn\n(Phi - C,LW)",3,null,null,"Ryan Callahan\n(NYR - RW)",3,null,null,"Dennis Wideman\n(Cgy - D)",3,null,null,"Wayne Simmonds\n(Phi - RW)",3,null,null,"Ryan O'Reilly\n(Col - C,LW)",3,null,null,"Michael Del Zotto\n(NYR - D)",3,null,null,"Devan Dubnyk\n(Edm - G)",3]
[null,null,"Justin Schultz\n(Edm - D)",3,"r2013",null,"Teemu Selanne\n(Anh - RW)",3,null,null,"Jiri Tlusty\n(Car - LW)",3,null,null,"Tim Thomas\n(NYI - G)",3,null,null,"Vladimir Tarasenko\n(StL - RW)",3,null,null,"Lars Eller\n(Mon - C)",3,null,null,"Mark Scheifele\n(Wpg - C)",3,null,null,"Brad Boyes\n(NYI - C,RW)",3,null,null,"Alexander Steen\n(StL - C,LW)",3,null,null,"Shane Doan\n(Pho - LW,RW)",3]
[null,null,"Kari Lehtonen\n(Dal - G)",3,null,null,"Tyler Toffoli\n(LA - C)",3,null,null,"Martin Erat\n(Was - LW,RW)",3,null,null,"Jussi Jokinen\n(Pit - C,LW)",3,null,null,"Mikhail Grigorenko\n(Buf - C)",3,null,null,"Michael Ryder\n(NJ - RW)",3,null,null,"Danny Briere\n(Mon - C,RW)",3,null,null,"Jonathan Bernier\n(Tor - G)",3,null,null,"Stephen Weiss\n(Det - C)",3,null,null,"Ben Bishop\n(TB - G)",3]
[null,null,"Torey Krug\n(Bos - D)",3,null,null,"Curtis Glencross\n(Cgy - LW)",3,null,null,"Jakub Kindl\n(Det - D)",3,null,null,"Jakob Silfverberg\n(Anh - LW,RW)",3,null,null,"Martin Brodeur\n(NJ - G)",3,null,null,"Lee Stempniak\n(Cgy - LW,RW)",3,null,null,"Tomas Vokoun\n(Pit - G)",3,null,null,"Tyler Bozak\n(Tor - C)",3,null,null,"Brenden Morrow\n(Pit - LW)",3,null,null,"Marcus Johansson\n(Was - C)",3]

{"sheet":"Draft List","index":1,"n_rows":211,"n_cols":9,"rows_kept":211}
[210,"Team","Player","Bid","NHL Team","Rank","Points","Wins","Shutouts"]
[1,"Dominant Brandon (Brandon)","Ondrej Pavelec",3,"(Wpg - G)",94,21,0,42]
[2,"Dominant Brandon (Brandon)","Mark Streit",9,"(Phi - D)",77,27]
[3,"Dominant Brandon (Brandon)","Keith Yandle",7,"(Pho - D)",86,30]
[4,"Dominant Brandon (Brandon)","Andrei Markov",3,"(Mon - D)",95,30]
[5,"Dominant Brandon (Brandon)","Henrik Zetterberg",25,"(Det - C,LW)",26,48]
[6,"Dominant Brandon (Brandon)","Brad Marchand",6,"(Bos - LW)",119,36]
[7,"Dominant Brandon (Brandon)","Jakub Voracek",6,"(Phi - RW)",61,46]
[8,"Dominant Brandon (Brandon)","Sidney Crosby",37,"(Pit - C)",1,56]
[9,"Dominant Brandon (Brandon)","Pavel Datsyuk",26,"(Det - C,LW)",19,49]
[10,"Killa Chinchillas (Colin)","Jaroslav Halak",1,"(StL - G)",153,6,3,15]
[11,"Killa Chinchillas (Colin)","Alex Pietrangelo",9,"(StL - D)",80,24]
[12,"Killa Chinchillas (Colin)","Cam Fowler",9,"(Anh - D)",237,11]
[13,"Killa Chinchillas (Colin)","Oliver Ekman-Larsson",9,"(Pho - D)",121,24]
[14,"Killa Chinchillas (Colin)","James Neal",10,"(Pit - LW,RW)",27,36]
[15,"Killa Chinchillas (Colin)","David Perron",1,"(Edm - LW)",188,25]
[16,"Killa Chinchillas (Colin)","Blake Wheeler","`","(Wpg - RW)",105,41]
[17,"Killa Chinchillas (Colin)","Evgeni Malkin",37,"(Pit - C,RW)",3,33]
[18,"Killa Chinchillas (Colin)","Jason Spezza",18,"(Ott - C)",38,5]
[19,"Killa Chinchillas (Colin)","Nail Yakupov",18,"(Edm - RW)",44,31]
[20,"Woap (Mike)","Carey Price",4,"(Mon - G)",29,21,3,45]
[21,"Woap (Mike)","Jake Gardiner",6,"(Tor - D)",365,4]
[22,"Woap (Mike)","Mark Giordano",4,"(Cgy - D)",230,15]
[23,"Woap (Mike)","Sergei Gonchar",1,"(Dal - D)",117,27]
[24,"Woap (Mike)","Jamie Benn",7,"(Dal - LW)",48,33]
[25,"Woap (Mike)","Rick Nash",12,"(NYR - LW,RW)",36,42]
[26,"Woap (Mike)","Jordan Eberle",7,"(Edm - RW)",34,37]
[27,"Woap (Mike)","Alexander Semin",10,"(Car - LW,RW)",46,44]
[28,"Woap (Mike)","Derek Stepan",6,"(NYR - C)",72,44]
[29,"Woap (Mike)","Ryan Getzlaf",13,"(Anh - C)",42,49]
[30,"Woap (Mike)","Filip Forsberg",3,"(Nsh - C,RW)",276,1]
[31,"Riverdogs (Rhonda)","Jonathan Quick",4,"(LA - G)",22,18,1,37]
[32,"Riverdogs (Rhonda)","Ryan Suter",9,"(Min - D)",55,32]
[33,"Riverdogs (Rhonda)","Jordan Staal",6,"(Car - C,LW)",161,31]
[34,"Riverdogs (Rhonda)","Eric Staal",20,"(Car - C)",11,53]
[35,"Riverdogs (Rhonda)","Jonathan Toews",20,"(Chi - C)",25,48]
[36,"Riverdogs (Rhonda)","Jonathan Huberdeau",7,"(Fla - C,LW)",92,31]
[37,"Curtis Crazy Canucks (Todd)","Roberto Luongo",1,"(Van - G)",50,9,2,20]
[38,"Curtis Crazy Canucks (Todd)","Zdeno Chara",18,"(Bos - D)",71,19]
[39,"Curtis Crazy Canucks (Todd)","Scott Hartnell",5,"(Phi - LW)",158,11]
[40,"Curtis Crazy Canucks (Todd)","Joffrey Lupul",6,"(Tor - LW,RW)",64,18]
[41,"Curtis Crazy Canucks (Todd)","Tyler Seguin",14,"(Dal - C,RW)",45,32]
[42,"Curtis Crazy Canucks (Todd)","David Krejci",9,"(Bos - C)",67,33]
[43,"Vamoos Pest (Tom)","Craig Anderson",1,"(Ott - G)",21,12,3,27]
[44,"Vamoos Pest (Tom)","Alex Ovechkin",29,"(Was - RW)",4,56]
[45,"Vamoos Pest (Tom)","Chris Kunitz",6,"(Pit - LW)",53,52]
[46,"Vamoos Pest (Tom)","Patrick Kane",27,"(Chi - C,RW)",8,55]
[47,"Vamoos Pest (Tom)","Mike Ribeiro",11,"(Pho - C)",54,49]
[48,"Dominant Brandon (Brandon)","Cody Hodgson",3,"(Buf - C,RW)",171,34]
[49,"Bruins (Bruce)","Kris Letang",12,"(Pit - D)",35,38]
[50,"Bruins (Bruce)","Alex Goligoski",4,"(Dal - D)",160,27]
[51,"Bruins (Bruce)","Slava Voynov",4,"(LA - D)",168,25]
[52,"Bruins (Bruce)","Gabriel Landeskog",7,"(Col - LW)",89,17]
[53,"Bruins (Bruce)","Taylor Hall",24,"(Edm - LW)",20,50]
[54,"Bruins (Bruce)","Andrew Ladd",1,"(Wpg - LW)",85,46]
[55,"Bruins (Bruce)","Claude Giroux",8,"(Phi - C,RW)",16,48]
[56,"Bruins (Bruce)","Teddy Purcell",1,"(TB - RW)",132,36]
[57,"Bruins (Bruce)","Ryan Nugent-Hopkins",8,"(Edm - C)",63,24]
[58,"Bruins (Bruce)","Nicklas Backstrom",28,"(Was - C)",14,48]
[59,"Bruins (Bruce)","Matt Duchene",9,"(Col - C,LW)",33,43]
[60,"Bruins (Bruce)","Brendan Gallagher",3,"(Mon - RW)",189,28]
[61,"Bruins (Bruce)","Mikael Granlund",3,"(Min - C)",274,8]
[62,"Bruins (Bruce)","Justin Schultz",3,"(Edm - D)",79,27]
[63,"Tad Nugents (Nick)","Dion Phaneuf",7,"(Tor - D)",82,28]
[64,"Tad Nugents (Nick)","Tyler Ennis",7,"(Buf - C,LW)",128,31]
[65,"Tad Nugents (Nick)","David Backes",6,"(StL - C,RW)",110,28]
[66,"Booya's (Cathy)","Duncan Keith",7,"(Chi - D)",74,27]
[67,"Booya's (Cathy)","Mike Green",9,"(Was - D)",98,26]
[68,"Booya's (Cathy)","Christian Ehrhoff",3,"(Buf - D)",165,22]
[69,"Booya's (Cathy)","Evander Kane",6,"(Wpg - LW)",51,33]
[70,"Booya's (Cathy)","P.A. Parenteau",5,"(Col - RW)",59,43]
[71,"Booya's (Cathy)","Steven Stamkos",36,"(TB - C)",2,57]
[72,"Booya's (Cathy)","John Tavares",31,"(NYI - C)",5,47]
[73,"Robs Chiefs (Rob)","Braden Holtby",1,"(Was - G)",49,23,4,50]
[74,"Robs Chiefs (Rob)","Brian Campbell",6,"(Fla - D)",102,27]
[75,"Robs Chiefs (Rob)","James Wisniewski",3,"(Cls - D)",166,14]
[76,"Robs Chiefs (Rob)","Tomas Fleischmann",4,"(Fla - LW)",135,35]
[77,"Robs Chiefs (Rob)","Phil Kessel",13,"(Tor - RW)",9,52]
[78,"Vamoos Pest (Tom)","Nathan Horton",6,"(Cls - RW)",186,22]
[79,"Robs Chiefs (Rob)","Nazem Kadri",6,"(Tor - C)",108,44]
[80,"Robs Chiefs (Rob)","Mikko Koivu",22,"(Min - C)",155,37]
[81,"Woap (Mike)","P.K. Subban",18,"(Mon - D)",17,38]
[82,"Tad Nugents (Nick)","Henrik Sedin",29,"(Van - C)",10,45]
[83,"Tad Nugents (Nick)","Anze Kopitar",25,"(LA - C)",31,42]
[84,"Woap (Mike)","Patrick Sharp",13,"(Chi - C,LW)",52,20]
[85,"Booya's (Cathy)","Tuukka Rask",8,"(Bos - G)",6,19,5,43]
[86,"Vamoos Pest (Tom)","Joe Thornton",22,"(SJ - C)",56,40]
[87,"Woap (Mike)","Erik Karlsson",22,"(Ott - D)",32,14]
[88,"Vamoos Pest (Tom)","Patrick Marleau",17,"(SJ - C,LW)",62,31]
[89,"Curtis Crazy Canucks (Todd)","Shea Weber",11,"(Nsh - D)",69,28]
[90,"Killa Chinchillas (Colin)","Martin St. Louis",28,"(TB - RW)",13,60]
[91,"Riverdogs (Rhonda)","Corey Perry",17,"(Anh - RW)",23,36]
[92,"Riverdogs (Rhonda)","Thomas Vanek",18,"(Buf - LW,RW)",39,41]
[93,"Curtis Crazy Canucks (Todd)","Daniel Sedin",29,"(Van - LW)",18,40]
[94,"Booya's (Cathy)","Bobby Ryan",19,"(Ott - LW,RW)",41,30]
[95,"Bruins (Bruce)","Henrik Lundqvist",6,"(NYR - G)",7,24,2,50]
[96,"Killa Chinchillas (Colin)","Marian Gaborik",12,"(Cls - RW)",57,27]
[97,"Riverdogs (Rhonda)","Loui Eriksson",21,"(Bos - LW,RW)",58,29]
[98,"Riverdogs (Rhonda)","Dustin Byfuglien",15,"(Wpg - RW,D)",73,28]
[99,"Curtis Crazy Canucks (Todd)","Ryan Kesler",13,"(Van - C)",76,13]
[100,"Robs Chiefs (Rob)","Zach Parise",17,"(Min - LW)",28,38]
[101,"Vamoos Pest (Tom)","Marian Hossa",12,"(Chi - RW)",75,31]
[102,"Tad Nugents (Nick)","Jason Pominville",9,"(Min - RW)",83,34]
[103,"Curtis Crazy Canucks (Todd)","Drew Doughty",11,"(LA - D)",97,22]
[104,"Robs Chiefs (Rob)","Niklas Kronwall",11,"(Det - D)",100,29]
[105,"Woap (Mike)","Matt Moulson",14,"(NYI - LW)",40,44]
[106,"Robs Chiefs (Rob)","Logan Couture",16,"(SJ - C,LW)",81,37]
[107,"Bruins (Bruce)","Joe Pavelski",8,"(SJ - C,RW)",88,31]
[108,"Booya's (Cathy)","Jeff Carter",13,"(LA - C,LW,RW)",101,33]
[109,"Tad Nugents (Nick)","Brad Richards",13,"(NYR - C)",78,34]
[110,"Tad Nugents (Nick)","Jeff Skinner",9,"(Car - C,RW)",109,24]
[111,"Killa Chinchillas (Colin)","Tobias Enstrom",5,"(Wpg - D)",107,15]
[112,"Tad Nugents (Nick)","Alexander Edler",4,"(Van - D)",114,22]
[113,"Vamoos Pest (Tom)","Alex Galchenyuk",7,"(Mon - C,LW)",90,27]
[114,"Dominant Brandon (Brandon)","Patrice Bergeron",12,"(Bos - C)",104,32]
[115,"Bruins (Bruce)","Pekka Rinne",5,"(Nsh - G)",12,15,5,35]
[116,"Tad Nugents (Nick)","Dan Boyle",3,"(SJ - D)",116,20]
[117,"Tad Nugents (Nick)","Tomas Plekanec",4,"(Mon - C)",113,33]
[118,"Killa Chinchillas (Colin)","Antti Niemi",7,"(SJ - G)",15,24,4,52]
[119,"Vamoos Pest (Tom)","Max Pacioretty",11,"(Mon - LW)",84,39]
[120,"Tad Nugents (Nick)","Dustin Brown",6,"(LA - LW,RW)",112,29]
[121,"Riverdogs (Rhonda)","Patrik Elias",6,"(NJ - C,LW)",120,36]
[122,"Tad Nugents (Nick)","Milan Lucic",6,"(Bos - LW)",93,27]
[123,"Robs Chiefs (Rob)","James van Riemsdyk",4,"(Tor - LW)",99,32]
[124,"Robs Chiefs (Rob)","Johan Franzen",8,"(Det - LW,RW)",115,31]
[125,"Tad Nugents (Nick)","Sergei Bobrovsky",2,"(Cls - G)",24,21,4,46]
[126,"Dominant Brandon (Brandon)","Dany Heatley",3,"(Min - LW,RW)",118,21]
[127,"Bruins (Bruce)","Jarome Iginla",12,"(Bos - RW)",123,33]
[128,"Robs Chiefs (Rob)","Jimmy Howard",6,"(Det - G)",30,21,5,47]
[129,"Booya's (Cathy)","Mike Richards",4,"(LA - C,LW)",122,32]
[130,"Killa Chinchillas (Colin)","Sam Gagner",1,"(Edm - C,RW)",126,38]
[131,"Booya's (Cathy)","Justin Williams",1,"(LA - RW)",127,33]
[132,"Riverdogs (Rhonda)","Troy Brouwer",1,"(Was - RW)",130,33]
[133,"Tad Nugents (Nick)","Kevin Shattenkirk",2,"(StL - D)",125,23]
[134,"Riverdogs (Rhonda)","Victor Hedman",1,"(TB - D)",133,20]
[135,"Robs Chiefs (Rob)","Vincent Lecavalier",7,"(Phi - C)",124,32]
[136,"Tad Nugents (Nick)","Corey Crawford",6,"(Chi - G)",37,19,3,41]
[137,"Booya's (Cathy)","Bryan Little",1,"(Wpg - C,RW)",134,32]
[138,"Robs Chiefs (Rob)","Kimmo Timonen",6,"(Phi - D)",137,29]
[139,"Killa Chinchillas (Colin)","Jonathan Drouin",8,"(TB - LW)",236,0]
[140,"Dominant Brandon (Brandon)","Brian Elliott",1,"(StL - G)",96,14,3,31]
[141,"Bruins (Bruce)","Brent Burns",3,"(SJ - RW,D)",167,20]
[142,"Booya's (Cathy)","Pascal Dupuis",5,"(Pit - LW,RW)",136,38]
[143,"Vamoos Pest (Tom)","Daniel Alfredsson",2,"(Det - RW)",180,26]
[144,"Vamoos Pest (Tom)","John Carlson",1,"(Was - D)",145,22]
[145,"Riverdogs (Rhonda)","Dougie Hamilton",1,"(Bos - D)",192,16]
[146,"Woap (Mike)","Jonas Hiller",1,"(Anh - G)",68,15,1,31]
[147,"Killa Chinchillas (Colin)","Mikhail Grabovski",1,"(Was - C)",445,16]
[148,"Dominant Brandon (Brandon)","Seth Jones",1,"(Nsh - D)",201,0]
[149,"Booya's (Cathy)","Cody Franson",1,"(Tor - D)",151,29]
[150,"Curtis Crazy Canucks (Todd)","Jack Johnson",1,"(Cls - D)",147,19]
[151,"Vamoos Pest (Tom)","Evgeni Nabokov",1,"(NYI - G)",143,23,3,49]
[152,"Riverdogs (Rhonda)","Milan Michalek",1,"(Ott - LW,RW)",250,14]
[153,"Woap (Mike)","Nathan MacKinnon",7,"(Col - C)",253,0]
[154,"Killa Chinchillas (Colin)","Jaromir Jagr",1,"(NJ - RW)",193,35]
[155,"Dominant Brandon (Brandon)","Valeri Nichushkin",1,"(Dal - RW)",342,0]
[156,"Booya's (Cathy)","Cam Ward",1,"(Car - G)",60,9,0,18]
[157,"Riverdogs (Rhonda)","Marc-Andre Fleury",2,"(Pit - G)",47,23,1,47]
[158,"Vamoos Pest (Tom)","Brent Seabrook",1,"(Chi - D)",174,20]
[159,"Dominant Brandon (Brandon)","Aleksander Barkov",1,"(Fla - C)",312,0]
[160,"Curtis Crazy Canucks (Todd)","Mike Smith",1,"(Pho - G)",43,15,5,35]
[161,"Vamoos Pest (Tom)","Jay Bouwmeester",1,"(StL - D)",200,22]
[162,"Curtis Crazy Canucks (Todd)","Chris Stewart",1,"(StL - RW)",141,36]
[163,"Vamoos Pest (Tom)","Matt Carle",1,"(TB - D)",191,22]
[164,"Curtis Crazy Canucks (Todd)","Derek Roy",1,"(StL - C)",179,28]
[165,"Curtis Crazy Canucks (Todd)","Alexandre Burrows",1,"(Van - LW,RW)",242,24]
[166,"Killa Chinchillas (Colin)","Brayden Schenn",3,"(Phi - C,LW)",181,26]
[167,"Curtis Crazy Canucks (Todd)","Niklas Backstrom",3,"(Min - G)",65,24,2,50]
[168,"Tad Nugents (Nick)","James Reimer",3,"(Tor - G)",111,19,4,42]
[169,"Curtis Crazy Canucks (Todd)","Cory Schneider",3,"(NJ - G)",129,17,5,39]
[170,"Woap (Mike)","Ryan Callahan",3,"(NYR - RW)",138,31]
[171,"Booya's (Cathy)","Michael Cammalleri",3,"(Cgy - C,LW)",163,32]
[172,"Riverdogs (Rhonda)","Tyson Barrie",3,"(Col - D)",170,13]
[173,"Dominant Brandon (Brandon)","Ryan Miller",3,"(Buf - G)",70,17,0,34]
[174,"Bruins (Bruce)","Kari Lehtonen",3,"(Dal - G)",66,15,1,31]
[175,"Vamoos Pest (Tom)","Brandon Saad",3,"(Chi - LW)",169,27]
[176,"Killa Chinchillas (Colin)","Tim Thomas",3,"(NYI - G)",349,"-","-",0]
[177,"Curtis Crazy Canucks (Todd)","Michael Del Zotto",3,"(NYR - D)",150,21]
[178,"Tad Nugents (Nick)","Dennis Wideman",3,"(Cgy - D)",156,22]
[179,"Robs Chiefs (Rob)","Ryan O'Reilly",3,"(Col - C,LW)",182,20]
[180,"Woap (Mike)","Vladimir Tarasenko",3,"(StL - RW)",154,19]
[181,"Booya's (Cathy)","Semyon Varlamov",3,"(Col - G)",103,11,3,25]
[182,"Riverdogs (Rhonda)","Wayne Simmonds",3,"(Phi - RW)",131,32]
[183,"Dominant Brandon (Brandon)","Dan Hamhuis",3,"(Van - D)",196,24]
[184,"Bruins (Bruce)","Torey Krug",3,"(Bos - D)",792,1]
[185,"Vamoos Pest (Tom)","Devan Dubnyk",3,"(Edm - G)",106,14,2,30]
[186,"Killa Chinchillas (Colin)","Jussi Jokinen",3,"(Pit - C,LW)",289,22]
[187,"Curtis Crazy Canucks (Todd)","Alexander Steen",3,"(StL - C,LW)",148,27]
[188,"Tad Nugents (Nick)","Lars Eller",3,"(Mon - C)",177,30]
[189,"Vamoos Pest (Tom)","Jonathan Bernier",3,"(Tor - G)",142,9,1,19]
[190,"Woap (Mike)","Mikhail Grigorenko",3,"(Buf - C)",214,5]
[191,"Booya's (Cathy)","Jiri Tlusty",3,"(Car - LW)",175,38]
[192,"Riverdogs (Rhonda)","Mark Scheifele",3,"(Wpg - C)",292,0]
[193,"Dominant Brandon (Brandon)","Teemu Selanne",3,"(Anh - RW)",204,24]
[194,"Vamoos Pest (Tom)","Shane Doan",3,"(Pho - LW,RW)",244,27]
[195,"Killa Chinchillas (Colin)","Jakob Silfverberg",3,"(Anh - LW,RW)",266,19]
[196,"Curtis Crazy Canucks (Todd)","Stephen Weiss",3,"(Det - C)",146,4]
[197,"Tad Nugents (Nick)","Michael Ryder",3,"(NJ - RW)",234,35]
[198,"Robs Chiefs (Rob)","Brad Boyes",3,"(NYI - C,RW)",297,35]
[199,"Woap (Mike)","Martin Brodeur",3,"(NJ - G)",87,13,2,28]
[200,"Booya's (Cathy)","Martin Erat",3,"(Was - LW,RW)",248,24]
[201,"Riverdogs (Rhonda)","Danny Briere",3,"(Mon - C,RW)",337,16]
[202,"Dominant Brandon (Brandon)","Tyler Toffoli",3,"(LA - C)",235,5]
[203,"Vamoos Pest (Tom)","Ben Bishop",3,"(TB - G)",159,11,2,24]
[204,"Curtis Crazy Canucks (Todd)","Brenden Morrow",3,"(Pit - LW)",285,25]
[205,"Tad Nugents (Nick)","Lee Stempniak",3,"(Cgy - LW,RW)",308,32]
[206,"Robs Chiefs (Rob)","Tyler Bozak",3,"(Tor - C)",178,28]
[207,"Booya's (Cathy)","Jakub Kindl",3,"(Det - D)",351,13]
[208,"Riverdogs (Rhonda)","Tomas Vokoun",3,"(Pit - G)",213,13,3,29]
[209,"Dominant Brandon (Brandon)","Curtis Glencross",3,"(Cgy - LW)",243,26]
[210,"Vamoos Pest (Tom)","Marcus Johansson",3,"(Was - C)",190,22]

{"sheet":"Summary","index":2,"n_rows":12,"n_cols":11,"rows_kept":12}
["Owners","Current Used Points","Remaining Points","Maximum Bidding Points","Remaining # Players to Draft","Goalies","Defence","Left Wingers","Right Wingers","Centres","Utility"]
["Bruins (Bruce)",140,10,10,0,{"$f":"2-COUNT('Draft Roster'!D4:D5)","v":0},{"$f":"4-COUNT('Draft Roster'!D6:D9)","v":0},{"$f":"3-COUNT('Draft Roster'!D10:D12)","v":0},{"$f":"3-COUNT('Draft Roster'!D13:D15)","v":0},{"$f":"3-COUNT('Draft Roster'!D16:D18)","v":0},{"$f":"1-COUNT('Draft Roster'!D19)","v":0}]
["Dominant Brandon (Brandon)",144,6,6,0,{"$f":"2-COUNT('Draft Roster'!H4:H5)","v":0},{"$f":"4-COUNT('Draft Roster'!H6:H9)","v":0},{"$f":"3-COUNT('Draft Roster'!H10:H12)","v":0},{"$f":"3-COUNT('Draft Roster'!H13:H15)","v":0},{"$f":"3-COUNT('Draft Roster'!H16:H18)","v":0},{"$f":"1-COUNT('Draft Roster'!H19)","v":0}]
["Booya's (Cathy)",150,0,0,0,{"$f":"2-COUNT('Draft Roster'!L4:L5)","v":0},{"$f":"4-COUNT('Draft Roster'!L6:L9)","v":0},{"$f":"3-COUNT('Draft Roster'!L10:L12)","v":0},{"$f":"3-COUNT('Draft Roster'!L13:L15)","v":0},{"$f":"3-COUNT('Draft Roster'!L16:L18)","v":0},{"$f":"1-COUNT('Draft Roster'!L19)","v":0}]
["Killa Chinchillas (Colin)",130,20,20,0,{"$f":"2-COUNT('Draft Roster'!P4:P5)","v":0},{"$f":"4-COUNT('Draft Roster'!P6:P9)","v":0},{"$f":"3-COUNT('Draft Roster'!P10:P12)","v":0},{"$f":"3-COUNT('Draft Roster'!P13:P15)","v":0},{"$f":"3-COUNT('Draft Roster'!P16:P18)","v":0},{"$f":"1-COUNT('Draft Roster'!P19)","v":0}]
["Woap (Mike)",145,5,5,0,{"$f":"2-COUNT('Draft Roster'!T4:T5)","v":0},{"$f":"4-COUNT('Draft Roster'!T6:T9)","v":0},{"$f":"3-COUNT('Draft Roster'!T10:T12)","v":0},{"$f":"3-COUNT('Draft Roster'!T13:T15)","v":0},{"$f":"3-COUNT('Draft Roster'!T16:T18)","v":0},{"$f":"1-COUNT('Draft Roster'!T19)","v":0}]
["Tad Nugents (Nick)",138,12,12,0,{"$f":"2-COUNT('Draft Roster'!X4:X5)","v":0},{"$f":"4-COUNT('Draft Roster'!X6:X9)","v":0},{"$f":"3-COUNT('Draft Roster'!X10:X12)","v":0},{"$f":"3-COUNT('Draft Roster'!X13:X15)","v":0},{"$f":"3-COUNT('Draft Roster'!X16:X18)","v":0},{"$f":"1-COUNT('Draft Roster'!X19)","v":0}]
["Riverdogs (Rhonda)",149,1,1,0,{"$f":"2-COUNT('Draft Roster'!AB4:AB5)","v":0},{"$f":"4-COUNT('Draft Roster'!AB6:AB9)","v":0},{"$f":"3-COUNT('Draft Roster'!AB10:AB12)","v":0},{"$f":"3-COUNT('Draft Roster'!AB13:AB15)","v":0},{"$f":"3-COUNT('Draft Roster'!AB16:AB18)","v":0},{"$f":"1-COUNT('Draft Roster'!AB19)","v":0}]
["Flying Scotsman (Rob)",136,14,14,0,{"$f":"2-COUNT('Draft Roster'!AF4:AF5)","v":0},{"$f":"4-COUNT('Draft Roster'!AF6:AF9)","v":0},{"$f":"3-COUNT('Draft Roster'!AF10:AF12)","v":0},{"$f":"3-COUNT('Draft Roster'!AF13:AF15)","v":0},{"$f":"3-COUNT('Draft Roster'!AF16:AF18)","v":0},{"$f":"1-COUNT('Draft Roster'!AF19)","v":0}]
["Curtis Crazy Canucks (Todd)",150,0,0,0,{"$f":"2-COUNT('Draft Roster'!AJ4:AJ5)","v":0},{"$f":"4-COUNT('Draft Roster'!AJ6:AJ9)","v":0},{"$f":"3-COUNT('Draft Roster'!AJ10:AJ12)","v":0},{"$f":"3-COUNT('Draft Roster'!AJ13:AJ15)","v":0},{"$f":"3-COUNT('Draft Roster'!AJ16:AJ18)","v":0},{"$f":"1-COUNT('Draft Roster'!AJ19)","v":0}]
["Vamoos Pest (Tom)",150,0,0,0,{"$f":"2-COUNT('Draft Roster'!AN4:AN5)","v":0},{"$f":"4-COUNT('Draft Roster'!AN6:AN9)","v":0},{"$f":"3-COUNT('Draft Roster'!AN10:AN12)","v":0},{"$f":"3-COUNT('Draft Roster'!AN13:AN15)","v":0},{"$f":"3-COUNT('Draft Roster'!AN16:AN18)","v":0},{"$f":"1-COUNT('Draft Roster'!AN19)","v":0}]
[{"$nulls":4},{"$f":"SUM(E2:E11)","v":0},{"$f":"SUM(F2:F11)","v":0},{"$f":"SUM(G2:G11)","v":0},0,0,0,0]

{"sheet":"Centre","index":3,"n_rows":221,"n_cols":4,"rows_kept":221}
["Player","Team","O-Rank","Points"]
{"$rows_empty":19}
["Kyle Turris","(Ott - C)",139,29]
["Paul Stastny","(Col - C)",140,24]
[]
[]
["Derick Brassard","(NYR - C)",149,29]
["T.J. Oshie","(StL - C,RW)",152,20]
[]
["Patrik Berglund","(StL - C)",172,25]
[]
[]
[]
[]
[]
["David Desharnais","(Mon - C)",184,28]
["Damien Brunner","(Det - C)",185,26]
[]
["Olli Jokinen","(Wpg - C)",205,14]
["Ryan Strome","(NYI - C)",211,0]
[]
["Charlie Coyle","(Min - C,RW)",215,14]
["Cory Conacher","(Ott - C)",217,29]
["Adam Henrique","(NJ - C)",218,16]
["Valtteri Filppula","(TB - C,LW)",223,17]
["Brandon Dubinsky","(Cls - C,LW)",224,20]
["Michael Frolik","(Wpg - C,RW)",225,10]
[]
[]
["Mikael Backlund","(Cgy - C)",264,16]
["Travis Zajac","(NJ - C)",269,20]
["Gustav Nyquist","(Det - C)",272,6]
["Tuomo Ruutu","(Car - C,LW)",275,9]
["Andrew Shaw","(Chi - C)",277,15]
["Craig Smith","(Nsh - C,RW)",280,12]
["Kyle Palmieri","(Anh - C)",282,21]
["Brooks Laich","(Was - C)",283,4]
["Alex Burmistrov","(Wpg - C,RW)",284,10]
["Artem Anisimov","(Cls - C,LW)",286,18]
["Cody Eakin","(Dal - C)",287,24]
["Martin Hanzal","(Pho - C)",288,23]
[]
["Frans Nielsen","(NYI - C)",290,29]
[]
["Drew Shore","(Fla - C)",294,13]
[]
["Dave Bolland","(Tor - C)",298,14]
["Nathan Gerbe","(Car - C,LW)",302,10]
["Mathieu Perreault","(Was - C)",307,17]
[]
["Mika Zibanejad","(Ott - C)",314,20]
["Antoine Vermette","(Pho - C,LW)",315,21]
["Rich Peverley","(Dal - C)",316,18]
["Nick Bjugstad","(Fla - C)",318,1]
["Peter Mueller","(Fla - C)",320,17]
["Shawn Matthias","(Fla - C)",323,21]
["Chris Kreider","(NYR - C)",325,3]
["Ryan Johansen","(Cls - C,RW)",326,12]
["Andrei Loktionov","(NJ - C)",329,12]
["Vinny Prospal","(Cls - C,LW)",332,30]
["Michael Sgarbossa","(Col - C)",333,0]
[]
["Jaden Schwartz","(StL - C)",344,13]
["Sean Couturier","(Phi - C)",347,15]
["Andrew Cogliano","(Anh - C,LW)",348,23]
["Tyler Johnson","(TB - C)",352,6]
["Mark Letestu","(Cls - C)",355,27]
["Ryan Spooner","(Bos - C)",356,0]
["Alex Killorn","(TB - C,LW)",359,19]
["Trevor Lewis","(LA - C)",362,14]
["Peter Holland","(Anh - C)",368,5]
["Steve Ott","(Buf - C,LW)",374,24]
["Brandon Pirri","(Chi - C)",379,0]
["Jordan Schroeder","(Van - C)",381,9]
["Brandon Sutter","(Pit - C)",382,19]
["Ville Leino","(Buf - C,LW)",384,6]
["Tomas Hertl","(SJ - C)",388,0]
["Tomas Tatar","(Det - C)",389,7]
["Mike Fisher","(Nsh - C)",391,21]
["Saku Koivu","(Anh - C)",397,27]
["Matt Cullen","(Nsh - C)",398,27]
["David Legwand","(Nsh - C)",404,25]
["Jarret Stoll","(LA - C)",431,18]
["Zack Smith","(Ott - C)",434,15]
["Vladimir Sobotka","(StL - C)",442,19]
["John Mitchell","(Col - C)",444,20]
[]
["Vernon Fiddler","(Dal - C,LW)",447,17]
["Marcel Goc","(Fla - C,LW)",451,19]
["Matt Stajan","(Cgy - C)",461,23]
["Shawn Horcoff","(Dal - C)",466,12]
["Gregory Campbell","(Bos - C)",472,13]
["Marcus Kruger","(Chi - C)",475,13]
["Matt Hendricks","(Nsh - C)",483,8]
["Zenon Konopka","(Min - C)",485,0]
["Kyle Chipchura","(Pho - C)",491,14]
["Kyle Brodziak","(Min - C)",494,12]
["Maxim Lapierre","(StL - C,RW)",496,10]
["Ryan Carter","(NJ - C)",499,15]
["Tom Pyatt","(TB - C,LW)",500,16]
["Zac Rinaldo","(Phi - C)",502,5]
["Boyd Gordon","(Edm - C)",503,14]
["Scott Gomez","(Fla - C)",511,15]
["Jay McClement","(Tor - C)",515,17]
["Mike Rupp","(Min - C)",517,4]
["Chris Kelly","(Bos - C)",523,9]
["Andrew Desjardins","(SJ - C)",525,3]
["Ryan Garbutt","(Dal - C)",527,10]
["Tommy Wingels","(SJ - C)",528,13]
["Nate Thompson","(TB - C)",529,15]
["Nick Spaling","(Nsh - C)",533,13]
["Derek MacKenzie","(Cls - C)",536,8]
["Casey Cizikas","(NYI - C)",548,15]
["Nick Bonino","(Anh - C)",553,13]
["Dainius Zubrus","(NJ - C,RW)",559,9]
["Brian Boyle","(NYR - C)",562,5]
["Keith Aucoin","(StL - C)",570,12]
["Michal Handzus","(Chi - C)",574,8]
["Paul Gaustad","(Nsh - C,LW)",578,5]
["Cory Emmerton","(Det - C)",579,8]
["Brian Flynn","(Buf - C)",580,11]
["Jay Beagle","(Was - C)",584,8]
["Jordan Nolan","(LA - C)",606,6]
["Joakim Andersson","(Det - C)",608,8]
["Kevin Porter","(Buf - C)",609,9]
["Brad Richardson","(Van - C)",616,6]
["Colin Fraser","(LA - C)",617,7]
["Jim O'Brien","(Ott - C)",623,6]
["Eric Tangradi","(Wpg - C)",629,4]
["Jim Slater","(Wpg - C)",648,2]
["Darroll Powe","(NYR - C,RW)",653,0]
["James Wright","(Wpg - C)",658,5]
["Riley Nash","(Car - C)",659,9]
["Joe Vitale","(Pit - C)",660,5]
["Dustin Jeffrey","(Pit - C)",669,6]
["Mark Olver","(Col - C)",675,6]
["Andrew Ebbett","(Pit - C)",678,6]
["J.T. Miller","(NYR - C)",689,4]
["Gabriel Dumont","(Mon - C)",693,3]
["Peter Regin","(NYI - C,LW)",694,3]
["Darren Helm","(Det - C)",700,0]
["Luke Adam","(Buf - C)",704,1]
["Jean-Gabriel Pageau","(Ott - C)",706,4]
["Mike Santorelli","(Van - C)",714,4]
["James Sheppard","(SJ - C)",715,4]
["Maxwell Reinhart","(Cgy - C)",718,3]
["Chris Mueller","(Dal - C)",719,5]
["Dominic Moore","(NYR - C)",722,0]
["Blair Jones","(Cgy - C)",724,1]
["Dana Tyrell","(TB - C,LW)",725,4]
["Matt Ellis","(Buf - C,LW)",734,0]
["Micheal Haley","(NYR - C)",737,0]
["Zach Boychuk","(Car - C,LW)",739,2]
["Kris Newbury","(Phi - C)",740,1]
["Jake Dowell","(Min - C)",752,0]
["Stephane Da Costa","(Ott - C)",753,2]
["Jacob Josefson","(NJ - C)",756,3]
["Jesse Winchester","(Fla - C)",757,0]
["Brad Malone","(Col - C)",762,2]
["Carl Soderberg","(Bos - C)",765,2]
["Anton Lander","(Edm - C)",770,1]
["Jeremy Welsh","(Car - C,LW)",772,1]
["Zac Dalpe","(Car - C,RW)",776,3]
["Joe Colborne","(Tor - C)",778,0]
["Brandon McMillan","(Pho - C)",779,1]
["Paul Byron","(Cgy - C)",782,1]
["Trevor Smith","(Tor - C)",786,0]
["Chris Brown","(Pho - C)",787,0]
["Alexandre Bolduc","(StL - C)",800,0]
["Mike Hoffman","(Ott - C)",801,0]
["Patrice Cormier","(Wpg - C)",804,0]
["Andy Miele","(Pho - C)",805,0]
["Evgeny Grachev","(StL - C)",807,0]
["Nick Drazenovic","(Pit - C)",808,0]
["Bracken Kearns","(SJ - C)",811,0]
["Harri Pesonen","(NJ - C)",815,0]
["Anders Lee","(NYI - C)",820,2]
["Colton Sceviour","(Dal - C)",823,1]
["Joey Hishon","(Col - C)",829,0]
["Johan Sundstrom","(NYI - C)",830,0]
["Bo Horvat","(Van - C)",833,0]
["Max Domi","(Pho - C)",834,0]
["Zemgus Girgensons","(Buf - C,LW)",837,0]
["Mitchell Heard","(Col - C)",839,0]
["Paul Carey","(Col - C)",840,0]
["Mark McNeill","(Chi - C)",843,0]
["Brock Nelson","(NYI - C)",849,0]
["Colin Smith","(Col - C)",850,0]
["Ryan Stoa","(Was - C)",851,0]
["Carter Bancks","(Cgy - C)",854,0]
["Boone Jenner","(Cls - C)",856,0]
["Travis Oleksuk","(SJ - C)",857,0]
["Elias Lindholm","(Car - C)",858,0]
["Garrett Meurs","(Col - C)",860,0]
["Freddie Hamilton","(SJ - C)",863,0]
["Corban Knight","(Cgy - C)",866,0]
["Phillip Danault","(Chi - C)",872,0]
["Michael Clarke","(Col - C)",874,0]
["Joseph Blandisi","(Col - C)",875,0]
["Sean Monahan","(Cgy - C)",876,0]
["Jonathan Audy-Marchessault","(Cls - C)",883,0]
["Drew LeBlanc","(Chi - C)",890,0]
["Quinton Howden","(Fla - C)",891,0]

{"sheet":"Left Wing","index":4,"n_rows":172,"n_cols":4,"rows_kept":172}
["Player","Team","O-Rank","Points"]
{"$rows_empty":26}
["Mikkel Boedker","(Pho - LW)",202,26]
["Carl Hagelin","(NYR - LW)",207,24]
["Jiri Hudler","(Cgy - LW)",208,27]
["Nikolai Kulemin","(Tor - LW,RW)",220,23]
["Valtteri Filppula","(TB - C,LW)",223,17]
["Brandon Dubinsky","(Cls - C,LW)",224,20]
[]
[]
[]
[]
[]
[]
["Justin Abdelkader","(Det - LW,RW)",251,13]
["Colin Wilson","(Nsh - LW)",260,19]
["Emerson Etem","(Anh - LW,RW)",262,10]
["Josh Bailey","(NYI - LW)",263,19]
[]
["Alex Tanguay","(Col - LW)",267,27]
["Sven Baertschi","(Cgy - LW)",270,10]
["Ray Whitney","(Dal - LW)",271,29]
["Tuomo Ruutu","(Car - C,LW)",275,9]
["Magnus Paajarvi","(StL - LW)",281,16]
[]
["Artem Anisimov","(Cls - C,LW)",286,18]
[]
["Ryane Clowe","(NJ - LW,RW)",300,19]
["Clarke MacArthur","(Ott - LW)",301,20]
["Nathan Gerbe","(Car - C,LW)",302,10]
["Colin Greening","(Ott - LW)",303,19]
["R.J. Umberger","(Cls - LW)",304,18]
[]
["Mats Zuccarello","(NYR - LW)",311,8]
["Antoine Vermette","(Pho - C,LW)",315,21]
["Kris Versteeg","(Fla - LW,RW)",319,4]
["Bryan Bickell","(Chi - LW)",331,23]
["Vinny Prospal","(Cls - C,LW)",332,30]
["Drayson Bowman","(Car - LW)",345,5]
["Andrew Cogliano","(Anh - C,LW)",348,23]
["Guillaume Latendresse","(Pho - LW)",353,10]
["Marcus Foligno","(Buf - LW)",357,18]
["Alex Killorn","(TB - C,LW)",359,19]
["Viktor Stalberg","(Nsh - LW)",361,23]
["Steve Downie","(Col - LW,RW)",363,1]
["Steve Ott","(Buf - C,LW)",374,24]
["Benoit Pouliot","(NYR - LW)",375,20]
["Mason Raymond","(Van - LW)",378,22]
["Jeremy Morin","(Chi - LW)",380,2]
["Jason Zucker","(Min - LW)",383,5]
["Ville Leino","(Buf - C,LW)",384,6]
["Brandon Prust","(Mon - LW)",393,14]
["Jamie McGinn","(Col - LW)",400,22]
["Nick Foligno","(Cls - LW)",401,19]
["Cody McLeod","(Col - LW)",403,12]
["Daniel Winnik","(Anh - LW)",412,19]
["Jason Chimera","(Was - LW)",432,14]
["Matt Cooke","(Min - LW)",440,21]
["Vernon Fiddler","(Dal - C,LW)",447,17]
["Ryan Smyth","(Edm - LW)",449,13]
["Matt Beleskey","(Anh - LW)",450,13]
["Marcel Goc","(Fla - C,LW)",451,19]
["Tyler Kennedy","(SJ - LW,RW)",454,11]
["Richard Clune","(Nsh - LW)",456,9]
["Matt Martin","(NYI - LW)",457,11]
["Kyle Clifford","(LA - LW)",462,14]
["Rene Bourque","(Mon - LW)",464,13]
["Antoine Roussel","(Dal - LW)",465,14]
["Chris Higgins","(Van - LW)",467,15]
["Raffi Torres","(SJ - LW)",468,18]
["Shawn Thornton","(Bos - LW)",469,7]
["Lauri Korpikoski","(Pho - LW)",476,11]
["Daniel Paille","(Bos - LW)",480,17]
["Eric Nystrom","(Nsh - LW)",486,11]
["T.J. Galiardi","(Cgy - LW)",487,14]
["Gabriel Bourque","(Nsh - LW)",493,16]
["Ryan Malone","(TB - LW)",497,8]
["Tom Pyatt","(TB - C,LW)",500,16]
["Taylor Pyatt","(NYR - LW)",507,11]
["Dustin Penner","(Anh - LW)",509,14]
["Frazer McLaren","(Tor - LW)",513,5]
["Matt Calvert","(Cls - LW)",535,16]
["Ryan Jones","(Edm - LW)",541,7]
["Blake Comeau","(Cls - LW)",542,12]
["Rob Klinkhammer","(Pho - LW)",564,11]
["Dwight King","(LA - LW)",567,10]
["Tanner Glass","(Pit - LW)",575,2]
["Paul Gaustad","(Nsh - C,LW)",578,5]
["Tom Sestito","(Van - LW)",581,3]
["Todd Bertuzzi","(Det - LW,RW)",585,3]
["Drew Miller","(Det - LW)",586,8]
["Chris Porter","(StL - LW)",588,8]
["Travis Moen","(Mon - LW)",593,6]
["John Scott","(Buf - LW,D)",594,0]
["Patrick Bordeleau","(Col - LW)",595,5]
["Brandon Bollig","(Chi - LW)",599,0]
["Paul Bissonnette","(Pho - LW)",610,6]
["David Booth","(Van - LW)",618,3]
["Dan Carcillo","(LA - LW)",626,3]
["Jay Rosehill","(Phi - LW)",628,1]
["Taylor Beck","(Nsh - LW)",641,7]
["Matt Kassian","(Ott - LW)",642,1]
["Ben Eager","(Edm - LW)",643,2]
["Tye McGinn","(Phi - LW)",650,5]
["Pierre-Cedric Labrie","(TB - LW)",651,3]
["Aaron Volpatti","(Was - LW)",655,2]
["Harry Zolnierczyk","(Pit - LW)",671,1]
["Roman Horak","(Cgy - LW)",672,7]
["Sean Bergenheim","(Fla - LW)",687,0]
["Eric Boulton","(NYI - LW)",691,0]
["Peter Regin","(NYI - C,LW)",694,3]
["Ondrej Palat","(TB - LW)",695,4]
["Pat Maroon","(Anh - LW)",703,3]
["Chris Bourque","(Bos - LW)",705,4]
["Dave Dziurzynski","(Ott - LW)",708,2]
["David van der Gulik","(Col - LW)",709,2]
["Lane MacDermid","(Dal - LW)",710,2]
["Jesse Joensuu","(Edm - LW)",721,2]
["Dana Tyrell","(TB - C,LW)",725,4]
["Eric Selleck","(Fla - LW)",727,1]
["Matt Ellis","(Buf - C,LW)",734,0]
["Zach Boychuk","(Car - C,LW)",739,2]
["Tim Kennedy","(Pho - LW)",748,2]
["Nicolas Blanchard","(Car - LW)",750,0]
["Steve MacIntyre","(Pit - LW)",763,0]
["Daniel Bang","(Nsh - LW)",768,2]
["Mattias Tedenby","(NJ - LW)",769,1]
["Jeremy Welsh","(Car - C,LW)",772,1]
["Scott Laughton","(Phi - LW)",780,0]
["Ben Hanowski","(Cgy - LW)",781,1]
["Stephane Veilleux","(Min - LW)",795,0]
["Lance Bouma","(Cgy - LW)",798,0]
["Mike Angelidis","(TB - LW)",809,0]
["Austin Watson","(Nsh - LW)",810,1]
["Christian Thomas","(Mon - LW)",813,0]
["Johan Larsson","(Buf - LW)",814,0]
["Carl Klingberg","(Wpg - LW)",819,0]
["Andrew Agozzino","(Col - LW)",831,0]
["Trevor Cheek","(Col - LW)",836,0]
["Zemgus Girgensons","(Buf - C,LW)",837,0]
["Tanner Pearson","(LA - LW)",838,0]
["Bryan Lerg","(Col - LW)",846,0]
["Nick Tarnasky","(Mon - LW)",847,0]
["Troy Bourke","(Col - LW)",862,0]
["John Persson","(NYI - LW)",865,0]
["Colin Stuart","(Van - LW)",881,0]
["Nicklas Jensen","(Van - LW,RW)",885,0]

{"sheet":"Right Wing","index":5,"n_rows":156,"n_cols":4,"rows_kept":156}
["Player","Team","O-Rank","Points"]
{"$rows_empty":24}
["T.J. Oshie","(StL - C,RW)",152,20]
[]
["Matt Read","(Phi - RW)",164,24]
[]
["Kyle Okposo","(NYI - RW)",176,24]
[]
[]
["Cam Atkinson","(Cls - RW)",199,18]
[]
["Charlie Coyle","(Min - C,RW)",215,14]
["Nikolai Kulemin","(Tor - LW,RW)",220,23]
["Drew Stafford","(Buf - RW)",221,18]
["Michael Frolik","(Wpg - C,RW)",225,10]
[]
["Ales Hemsky","(Edm - RW)",240,20]
[]
[]
["Patric Hornqvist","(Nsh - RW)",245,14]
["Radim Vrbata","(Pho - RW)",247,28]
[]
[]
["Justin Abdelkader","(Det - LW,RW)",251,13]
["Martin Havlat","(SJ - RW)",257,18]
["Michael Grabner","(NYI - RW)",259,21]
["Emerson Etem","(Anh - LW,RW)",262,10]
[]
["Craig Smith","(Nsh - C,RW)",280,12]
["Alex Burmistrov","(Wpg - C,RW)",284,10]
["David Clarkson","(Tor - RW)",291,24]
[]
["Ty Rattie","(StL - RW)",299,0]
["Ryane Clowe","(NJ - LW,RW)",300,19]
["Nino Niederreiter","(Min - RW)",305,0]
[]
["Matt Frattin","(LA - RW)",317,13]
["Kris Versteeg","(Fla - LW,RW)",319,4]
["Ryan Johansen","(Cls - C,RW)",326,12]
["Pierre-Marc Bouchard","(NYI - RW)",335,20]
["Zack Kassian","(Van - RW)",336,11]
[]
["Eric Fehr","(Was - RW)",341,17]
[]
["Beau Bennett","(Pit - RW)",343,14]
["Devin Setoguchi","(Wpg - RW)",346,27]
["Chris Neil","(Ott - RW)",358,12]
["Steve Downie","(Col - LW,RW)",363,1]
["Dmitrij Jaskin","(StL - RW)",371,0]
["Brian Gionta","(Mon - RW)",373,26]
["Bobby Butler","(Fla - RW)",376,11]
["Jannik Hansen","(Van - RW)",377,27]
["Nikita Kucherov","(TB - RW)",386,0]
["Alex Chiasson","(Dal - RW)",387,7]
["Tomas Kopecky","(Fla - RW)",394,27]
["Erik Cole","(Dal - RW)",427,13]
["B.J. Crombeen","(TB - RW)",441,8]
["Jordin Tootoo","(Det - RW)",452,8]
["Colton Orr","(Tor - RW)",453,4]
["Tyler Kennedy","(SJ - LW,RW)",454,11]
["Joel Ward","(Was - RW)",458,20]
["David Moss","(Pho - RW)",459,20]
["Erik Condra","(Ott - RW)",463,12]
["Cal Clutterbuck","(NYI - RW)",471,10]
["Jared Boll","(Cls - RW)",477,6]
["Colin McDonald","(NYI - RW)",479,17]
["Ryan Reaves","(StL - RW)",488,6]
["Patrick Dwyer","(Car - RW)",489,16]
["Steve Bernier","(NJ - RW)",495,15]
["Maxim Lapierre","(StL - C,RW)",496,10]
["Derek Dorsett","(NYR - RW)",498,9]
["Max Talbot","(Phi - RW)",501,10]
["Mike Brown","(Edm - RW)",508,2]
["Matt Halischuk","(Wpg - RW)",518,11]
["Tim Jackman","(Cgy - RW)",524,5]
["Patrick Kaleta","(Buf - RW)",539,1]
["Craig Adams","(Pit - RW)",544,9]
["Stephen Gionta","(NJ - RW)",545,14]
["Dainius Zubrus","(NJ - C,RW)",559,9]
["Chris Thorburn","(Wpg - RW)",561,4]
["David Jones","(Cgy - RW)",563,9]
["Arron Asham","(NYR - RW)",572,2]
["Dale Weise","(Van - RW)",576,6]
["Jack Skille","(Cls - RW)",577,12]
["Ryan White","(Mon - RW)",583,1]
["Todd Bertuzzi","(Det - LW,RW)",585,3]
["Nick Johnson","(Bos - RW)",587,6]
["Brandon Yip","(Pho - RW)",590,8]
["Adam Burish","(SJ - RW)",597,3]
["Torrey Mitchell","(Min - RW)",600,8]
["Matt D'Agostini","(Pit - RW)",601,6]
["Kevin Westgarth","(Car - RW)",603,4]
["Scottie Upshall","(Fla - RW)",604,5]
["Brian McGrattan","(Cgy - RW)",614,3]
["Krys Barch","(NJ - RW)",619,0]
["Brad Staubitz","(Anh - RW)",620,2]
["Adam Hall","(Phi - RW)",631,4]
["Patrick Eaves","(Det - RW)",635,8]
["Richard Panik","(TB - RW)",640,9]
["Aaron Palushaj","(Car - RW)",644,9]
["Reilly Smith","(Bos - RW)",645,9]
["Darroll Powe","(NYR - C,RW)",653,0]
["Joey Crabb","(Fla - RW)",657,2]
["George Parros","(Mon - RW)",667,2]
["Adam Cracknell","(StL - RW)",673,6]
["Jordan Caron","(Bos - RW)",674,3]
["Mikael Samuelsson","(Det - RW)",683,1]
["Peter Harrold","(NJ - RW,D)",688,5]
["Jimmy Hayes","(Chi - RW)",701,4]
["Chris Conner","(Pit - RW)",711,2]
["Brett Connolly","(TB - RW)",717,1]
["Anthony Peluso","(Wpg - RW)",728,2]
["Matt Fraser","(Bos - RW)",732,3]
["Benn Ferriero","(Van - RW)",743,1]
["Steve Pinizzotto","(Fla - RW)",749,0]
["Mike Blunden","(Mon - RW)",758,0]
["Corey Tropp","(Buf - RW)",764,0]
["Jason Akeson","(Phi - RW)",767,1]
["Devante Smith-Pelly","(Anh - RW)",773,0]
["J.T. Wyman","(Col - RW)",774,0]
["Zac Dalpe","(Car - C,RW)",776,3]
["Ben Smith","(Chi - RW)",777,1]
["Matt Pelech","(SJ - RW,D)",785,0]
["Guillaume Desbiens","(Col - RW)",799,0]
["J.T. Brown","(TB - RW)",803,0]
["Brandon Segal","(Was - RW)",806,0]
["Mark Stone","(Ott - RW)",816,0]
["Greg Nemisz","(Cgy - RW)",821,0]
["Troy Bodie","(Tor - RW)",852,0]
["Tom Wilson","(Was - RW)",864,0]
["Carter Ashton","(Tor - RW)",878,0]
["Nicklas Jensen","(Van - LW,RW)",885,0]
["Rickard Rakell","(Anh - RW)",887,0]

{"sheet":"Defence","index":6,"n_rows":260,"n_cols":4,"rows_kept":260}
["Player","Team","O-Rank","Points"]
{"$rows_empty":17}
["Lubomir Visnovsky","(NYI - D)",157,14]
[]
[]
["Fedor Tyutin","(Cls - D)",173,22]
[]
["Jason Garrison","(Van - D)",183,16]
["Francois Beauchemin","(Anh - D)",187,24]
[]
[]
["Nick Leddy","(Chi - D)",194,18]
["Jake Muzzin","(LA - D)",195,16]
[]
["Patrick Wiercioch","(Ott - D)",197,19]
["Marek Zidlicky","(NJ - D)",198,19]
[]
[]
["Ryan Whitney","(Edm - D)",203,13]
["Roman Josi","(Nsh - D)",206,18]
["Justin Faulk","(Car - D)",209,15]
["Kevin Bieksa","(Van - D)",210,12]
["Sheldon Souray","(Anh - D)",212,17]
["Ryan McDonagh","(NYR - D)",216,19]
["Nikita Nikitin","(Cls - D)",219,9]
["Sami Salo","(TB - D)",222,17]
["Marc-Andre Bergeron","(Car - D)",226,9]
["Dan Girardi","(NYR - D)",227,14]
["Jonas Brodin","(Min - D)",228,11]
["Zach Bogosian","(Wpg - D)",229,14]
["Joni Pitkanen","(Car - D)",231,9]
["Andy Greene","(NJ - D)",232,16]
["Joe Corvo","(Ott - D)",238,17]
["Carl Gunnarsson","(Tor - D)",239,15]
["Andrew MacDonald","(NYI - D)",241,12]
["Dennis Seidenberg","(Bos - D)",246,17]
["Chris Phillips","(Ott - D)",249,14]
["Jonathan Ericsson","(Det - D)",254,13]
["Travis Hamonic","(NYI - D)",255,10]
["Tyler Myers","(Buf - D)",256,8]
["Grant Clitsome","(Wpg - D)",258,16]
["Jay Harrison","(Car - D)",261,10]
["Dmitry Kulikov","(Fla - D)",265,10]
["Matt Irwin","(SJ - D)",273,12]
["Paul Martin","(Pit - D)",278,23]
["Stephane Robidas","(Dal - D)",279,13]
["Trevor Daley","(Dal - D)",293,13]
["Jared Spurgeon","(Min - D)",296,15]
["Raphael Diaz","(Mon - D)",309,14]
["Jordan Leopold","(StL - D)",310,10]
["Tom Gilbert","(Min - D)",313,13]
["Tim Gleason","(Car - D)",322,9]
["Johnny Boychuk","(Bos - D)",324,6]
["Andrej Meszaros","(Phi - D)",327,2]
["John-Michael Liles","(Tor - D)",328,11]
["Ian White","(Det - D)",330,4]
["Simon Despres","(Pit - D)",339,7]
["Ron Hainsey","(Wpg - D)",350,13]
[]
["Ryan Ellis","(Nsh - D)",354,6]
["Marc-Edouard Vlasic","(SJ - D)",360,7]
["Jamie McBain","(Buf - D)",364,8]
["Johnny Oduya","(Chi - D)",366,12]
["Luca Sbisa","(Anh - D)",367,8]
["Marc Staal","(NYR - D)",369,11]
["Matt Niskanen","(Pit - D)",370,14]
["Derek Morris","(Pho - D)",372,11]
["Andrew Ference","(Edm - D)",448,13]
["Mark Fraser","(Tor - D)",460,8]
["Luke Schenn","(Phi - D)",470,11]
["Brooks Orpik","(Pit - D)",473,8]
["Barret Jackman","(StL - D)",474,12]
["Anton Stralman","(NYR - D)",478,7]
["Eric Brewer","(TB - D)",481,12]
["Jeff Petry","(Edm - D)",482,12]
["Niklas Hjalmarsson","(Chi - D)",490,10]
["Brenden Dillon","(Dal - D)",492,8]
["Deryk Engelland","(Pit - D)",504,6]
["Ben Lovejoy","(Anh - D)",505,10]
["Mark Stuart","(Wpg - D)",506,4]
["Shane O'Brien","(Cgy - D)",510,4]
["Kyle Quincey","(Det - D)",512,3]
["Michal Rozsival","(Chi - D)",514,12]
["Adam McQuaid","(Bos - D)",516,4]
["Mike Weber","(Buf - D)",519,7]
["Marc Methot","(Ott - D)",520,11]
["Clayton Stoner","(Min - D)",521,10]
["Brad Stuart","(SJ - D)",526,6]
["Roman Polak","(StL - D)",530,6]
["John Erskine","(Was - D)",531,6]
["Keith Aulie","(TB - D)",532,7]
["Josh Gorges","(Mon - D)",534,9]
["Rostislav Klesla","(Pho - D)",537,8]
["Kevin Klein","(Nsh - D)",538,14]
["Erik Johnson","(Col - D)",540,4]
["Kris Russell","(Cgy - D)",543,7]
["T.J. Brodie","(Cgy - D)",546,14]
["Alexei Emelin","(Mon - D)",549,12]
["Ladislav Smid","(Edm - D)",550,4]
["Francis Bouillon","(Mon - D)",551,9]
["Michael Stone","(Pho - D)",552,9]
["Brendan Smith","(Det - D)",554,8]
["Jack Hillen","(Was - D)",555,9]
["Dalton Prout","(Cls - D)",556,7]
["Jan Hejda","(Col - D)",557,10]
["Steve Oleksy","(Was - D)",558,9]
["Bryan Allen","(Anh - D)",560,6]
["Corey Potter","(Edm - D)",565,4]
["Mark Fayne","(NJ - D)",566,6]
["Braydon Coburn","(Phi - D)",568,5]
["Anton Volchenkov","(NJ - D)",569,5]
["David Schlemko","(Pho - D)",571,6]
["Matt Hunwick","(Col - D)",573,6]
["Keaton Ellerby","(LA - D)",582,3]
["Andrej Sekera","(Car - D)",589,12]
["Radko Gudas","(TB - D)",591,5]
["Adam Larsson","(NJ - D)",592,6]
["John Scott","(Buf - LW,D)",594,0]
["Zbynek Michalek","(Pho - D)",596,2]
["Mark Fistric","(Anh - D)",598,6]
["Andre Benoit","(Col - D)",602,10]
["Justin Braun","(SJ - D)",605,7]
["Ryan Wilson","(Col - D)",607,3]
["Eric Gryba","(Ott - D)",611,6]
["Thomas Hickey","(NYI - D)",612,4]
["Keith Ballard","(Min - D)",613,2]
["Davis Drewiske","(Mon - D)",615,7]
["Karl Alzner","(Was - D)",621,5]
["Alec Martinez","(LA - D)",622,5]
["Erik Gustafsson","(Phi - D)",624,8]
["T.J. Brennan","(Tor - D)",625,10]
["Stu Bickel","(NYR - D)",627,0]
["Sheldon Brookbank","(Chi - D)",630,1]
["Matt Carkner","(NYI - D)",632,2]
["Nicklas Grossmann","(Phi - D)",633,4]
["Chris Tanev","(Van - D)",634,7]
["Chris Butler","(Cgy - D)",636,8]
["Tim Erixon","(Cls - D)",637,5]
["Douglas Murray","(Mon - D)",638,6]
["Paul Postma","(Wpg - D)",639,9]
["John Moore","(NYR - D)",646,7]
["Rob Scuderi","(Pit - D)",647,12]
["Mike Weaver","(Fla - D)",649,9]
["Alexander Sulzer","(Buf - D)",652,4]
["Stefan Elliott","(Col - D)",654,4]
["Philip Larsen","(Edm - D)",656,5]
["Justin Falk","(NYR - D)",661,3]
["Robert Bortuzzo","(Pit - D)",662,4]
["Aaron Rome","(Dal - D)",663,5]
["Erik Gudbranson","(Fla - D)",664,4]
["Robyn Regehr","(LA - D)",665,4]
["Nick Schultz","(Edm - D)",666,9]
["Tyson Strachan","(Was - D)",668,4]
["Henrik Tallinder","(Buf - D)",670,4]
["Jason Demers","(SJ - D)",676,3]
["Tomas Kundratek","(Was - D)",677,7]
["Jordie Benn","(Dal - D)",679,6]
["Bryce Salvador","(NJ - D)",680,2]
["Victor Bartley","(Nsh - D)",681,7]
["Willie Mitchell","(LA - D)",682,0]
["Jared Cowen","(Ott - D)",684,1]
["Jonathon Blum","(Min - D)",685,7]
["Adam Pardy","(Wpg - D)",686,4]
["Peter Harrold","(NJ - RW,D)",688,5]
["Brian Strait","(NYI - D)",690,4]
["Yannick Weber","(Van - D)",692,2]
["Matt Greene","(LA - D)",696,1]
["Dmitry Orlov","(Was - D)",697,1]
["Zach Redmond","(Wpg - D)",698,4]
["Andrew Alberts","(Van - D)",699,1]
["Bruno Gervais","(Phi - D)",702,6]
["Matt Gilroy","(Fla - D)",707,0]
["Nate Prosser","(Min - D)",712,0]
["Aaron Johnson","(NYR - D)",713,0]
["Cory Sarich","(Col - D)",716,2]
["Derek Smith","(Cgy - D)",720,1]
["Colby Robak","(Fla - D)",723,1]
["Danny DeKeyser","(Det - D)",726,1]
["Jarred Tinordi","(Mon - D)",729,2]
["Sami Vatanen","(Anh - D)",730,2]
["Brian Lashoff","(Det - D)",731,5]
["Marco Scandella","(Min - D)",733,1]
["Theo Peckham","(Chi - D)",735,0]
["Ian Cole","(StL - D)",736,1]
["Mark Cundari","(Cgy - D)",738,3]
["Jeff Schultz","(LA - D)",741,3]
["Mark Borowiecki","(Ott - D)",742,0]
["Marc-Andre Bourdon","(Phi - D)",744,0]
["Matt Tennyson","(SJ - D)",745,2]
["Brendan Mikkelson","(Pit - D)",746,1]
["Scott Hannan","(SJ - D)",747,1]
["Mark Pysyk","(Buf - D)",751,5]
["Korbinian Holzer","(Tor - D)",754,3]
["Matt Bartkowski","(Bos - D)",755,2]
["Mike Komisarek","(Car - D)",759,0]
["Jamie Oleksiak","(Dal - D)",760,2]
["Ed Jovanovski","(Fla - D)",761,1]
["Joe Finley","(NYI - D)",766,1]
["Matt Taormina","(TB - D)",771,0]
["David Savard","(Cls - D)",775,0]
["Cody Goloubef","(Cls - D)",783,1]
["Chris Summers","(Pho - D)",784,0]
["Matt Pelech","(SJ - RW,D)",785,0]
["Alex Petrovic","(Fla - D)",788,0]
["Nate Guenin","(Col - D)",789,0]
["Chad Ruhwedel","(Buf - D)",790,0]
["Steven Kampfer","(Min - D)",791,0]
[]
["Ryan Stanton","(Chi - D)",793,0]
["Brian Lee","(TB - D)",794,0]
["Andrej Sustr","(TB - D)",796,0]
["Nick Holden","(Col - D)",797,0]
["Arturs Kulda","(Wpg - D)",802,0]
["Kevin Marshall","(Tor - D)",812,0]
["Aaron Ness","(NYI - D)",817,0]
["David Rundblad","(Pho - D)",818,1]
["Calvin de Haan","(NYI - D)",822,0]
["Mike Mottau","(Fla - D)",824,0]
["Alexander Urbom","(NJ - D)",825,0]
["Frank Corrado","(Van - D)",826,0]
["Duncan Siemens","(Col - D)",827,0]
["Jacob Trouba","(Wpg - D)",828,0]
["Chris Bigras","(Col - D)",832,0]
["Karl Stollery","(Col - D)",835,0]
["Anton Belov","(Edm - D)",841,0]
["Hampus Lindholm","(Anh - D)",842,0]
["Kevin Connauton","(Dal - D)",844,0]
["Mason Geertsen","(Col - D)",845,0]
["Joonas Jarvinen","(Nsh - D)",848,0]
["Joe Morrow","(Bos - D)",853,0]
["Paul Ranger","(Tor - D)",855,0]
["Denis Grebeshkov","(Edm - D)",859,0]
["Jani Hakanpaa","(StL - D)",861,0]
["Jon Merrill","(NJ - D)",867,0]
["Nick Petrecki","(SJ - D)",868,0]
["Mattias Ohlund","(TB - D)",869,0]
["Ryan Murray","(Cls - D)",870,0]
["Gabriel Beaupre","(Col - D)",871,0]
["Markus Lauridsen","(Col - D)",873,0]
["Taylor Chorney","(StL - D)",877,0]
["Bryan Rodney","(Nsh - D)",879,0]
["Matt Donovan","(NYI - D)",880,0]
["Eric Gelinas","(NJ - D)",882,0]
["Cameron Schilling","(Was - D)",884,0]

{"sheet":"Goalies","index":7,"n_rows":81,"n_cols":6,"rows_kept":81}
["Player","Team","O-Rank","Wins","Shutouts","Points"]
{"$rows_empty":15}
["Viktor Fasth","(Anh - G)",91,15,4,34]
{"$rows_empty":7}
["Karri Ramo","(Cgy - G)",144,"-","-",0]
[]
["Jacob Markstrom","(Fla - G)",162,8,0,16]
[]
["Steve Mason","(Phi - G)",233,7,0,14]
["Ray Emery","(Phi - G)",252,17,3,37]
["Robin Lehner","(Ott - G)",268,5,0,10]
["Michal Neuvirth","(Was - G)",295,4,0,8]
["Jose Theodore","(Fla - G)",306,4,0,8]
["Jean-Sebastien Giguere","(Col - G)",321,5,0,10]
["Jake Allen","(StL - G)",334,9,1,19]
["Anders Lindback","(TB - G)",338,10,0,20]
["Dan Ellis","(Dal - G)",340,6,1,13]
[]
["Anton Khudobin","(Car - G)",385,9,1,19]
["Chad Johnson","(Bos - G)",390,2,1,5]
["Peter Budaj","(Mon - G)",392,8,1,17]
["Nikolai Khabibulin","(Chi - G)",395,4,1,9]
["Ben Scrivens","(LA - G)",396,7,2,16]
["Jhonas Enroth","(Buf - G)",399,4,1,9]
["Thomas Greiss","(Pho - G)",402,1,1,3]
["Martin Biron","(NYR - G)",405,2,0,4]
["Darcy Kuemper","(Min - G)",406,1,0,2]
["Petr Mrazek","(Det - G)",407,1,0,2]
["Jason LaBarbera","(Edm - G)",408,4,0,8]
["Josh Harding","(Min - G)",409,1,1,3]
["Anders Nilsson","(NYI - G)",410,"-","-",0]
["Curtis McElhinney","(Cls - G)",411,"-","-",0]
["Drew MacIntyre","(Tor - G)",413,"-","-",0]
["Spencer Martin","(Col - G)",414,"-","-",0]
["Kieran Millan","(Col - G)",415,"-","-",0]
["Jeremy Smith","(Cls - G)",416,"-","-",0]
["Reto Berra","(Cgy - G)",417,"-","-",0]
["Jeff Zatkoff","(Pit - G)",418,"-","-",0]
["Niklas Svedberg","(Bos - G)",419,"-","-",0]
["Kent Patterson","(Col - G)",420,"-","-",0]
["Harri Sateri","(SJ - G)",421,"-","-",0]
["Riku Helenius","(TB - G)",422,"-","-",0]
["Eddie Lack","(Van - G)",423,"-","-",0]
["John Gibson","(Anh - G)",424,"-","-",0]
["Calvin Pickard","(Col - G)",425,"-","-",0]
["Sami Aittokallio","(Col - G)",426,0,0,0]
["Alex Stalock","(SJ - G)",428,0,0,0]
["Carter Hutton","(Nsh - G)",429,0,0,0]
["Philipp Grubauer","(Was - G)",430,0,0,0]
["Cedrick Desjardins","(TB - G)",433,0,0,0]
["Yann Danis","(Phi - G)",435,1,0,2]
["Al Montoya","(Wpg - G)",436,3,1,7]
["Matt Hackett","(Buf - G)",437,0,0,0]
["Kevin Poulin","(NYI - G)",438,1,0,2]
["Cristopher Nilstorp","(Dal - G)",439,1,0,2]
["Jonas Gustavsson","(Det - G)",443,2,0,4]
["Joey MacDonald","(Cgy - G)",446,8,0,16]
["Richard Bachman","(Edm - G)",455,6,0,12]
["Justin Peters","(Car - G)",484,4,1,9]
["Miikka Kiprusoff","(Cgy - G)",522,8,0,16]
["Scott Clemmensen","(Fla - G)",547,3,0,6]

{"sheet":"Data","index":8,"n_rows":39,"n_cols":7,"rows_kept":39}
["Owners","Position"]
["Booya's (Cathy)","goalie 1"]
["Bruins (Bruce)","goalie 2"]
["Killa Chinchillas (Colin)","defence #1"]
["Curtis Crazy Canucks (Todd)","defence #2"]
["Dominant Brandon (Brandon)","defence #3"]
["Vamoos Pest (Tom)","defence #4"]
["Robs Chiefs (Rob)","left wing #1"]
["Riverdogs (Rhonda)","left wing #2"]
["Tad Nugents (Nick)","left wing #3"]
["Woap (Mike)","right wing #1"]
[null,"right wing #2"]
[null,"right wing #3"]
[null,"centre #1"]
[null,"centre #2"]
[null,"centre #3"]
[null,"utility"]
[null,"Reserve Roster #1"]
[null,"Reserve Roster #2"]
[null,"Reserve Roster #3"]
[null,"Reserve Roster #4"]
[null,"Reserve Roster #5"]
[null,"Reserve Roster #6"]
[null,"Reserve Roster #7"]
["Make sure every year to select all the players for each position and recreate the bookmark name (delete name first, then recreate name) to ensure all players get listed.",null,"goalie","defence","left wing","right wing","centre"]
["Ensure that all players are listed when clicking on the button."]
[]
["When changing the toolbar, customize/hockey/attach/delete previous hockey/reattach new hockey toolbar."]
["Draft Order"]
["Dominant Brandon (Brandon)",8]
["Riverdogs (Rhonda)",7]
["Robs Chiefs (Rob)",4]
["Woap (Mike)",5]
["Booya's (Cathy)",6]
["Tad Nugents (Nick)",3]
["Killa Chinchillas (Colin)",1]
["Vamoos Pest (Tom)",10]
["Curtis Crazy Canucks (Todd)",2]
["Bruins (Bruce)",9]